bitfinex/quotes_ETHUSD_20241217
["timestamp","ask_amount","ask_price","bid_price","bid_amount"]
[1734413560766,2.32953682,4014.1,4014.0,0.8009]
[1734413560970,2.32953682,4014.1,4014.0,1.05002]
[1734413561180,2.32953682,4014.5,4014.0,0.9432648]
[1734413561515,2.32953682,4014.5,4014.4,0.2491]
[1734413562373,2.32953682,4014.5,4014.3,3.0]
[1734413562572,2.32953682,4014.5,4013.2,0.8009]
[1734413562774,2.32953682,4013.7,4013.6,0.24914]
[1734413563184,2.32953682,4013.7,4013.3,0.18414093]
[1734413563514,2.32953682,4013.7,4013.4,0.24916]
[1734413564837,2.32953682,4013.7,4012.9,0.8009]
[1734413565019,2.32953682,4013.3,4013.2,0.24917]
[1734413565515,2.32953682,4013.3,4012.9,0.24919]
[1734413566727,2.32953682,4013.3,4012.6,0.7539]
[1734413567388,2.32953682,4012.9,4012.4,0.12758479]
[1734413567604,2.32953682,4012.9,4012.7,0.27247147]
[1734413567901,2.32953682,4012.9,4012.7,0.2492]
[1734413568317,2.32953682,4012.9,4012.8,0.02170277]
[1734413568716,2.32953682,4012.9,4012.7,0.2492]
[1734413569242,2.32953682,4012.9,4012.8,0.02170277]
[1734413569613,2.32953682,4012.9,4012.7,0.2492]
[1734413569823,2.32953682,4012.9,4012.8,0.02170277]
[1734413570026,8.95,4014.3,4012.4,0.24922]
[1734413570215,2.32953682,4013.6,4013.4,0.24916]
[1734413570414,2.32953682,4013.6,4012.8,0.7539]
[1734413570617,2.32953682,4013.6,4013.2,3.0]
[1734413570816,2.32953682,4013.6,4013.1,0.24918]
[1734413571019,2.32953682,4013.2,4013.1,0.24918]
[1734413572846,2.32953682,4013.2,4012.6,0.7539]
[1734413573055,2.32953682,4013.2,4012.8,0.24919]
[1734413573408,2.32953682,4013.2,4012.9,0.02168551]
[1734413574971,2.32953682,4013.2,4012.8,3.24919]
[1734413575113,2.32953682,4013.2,4012.8,0.24919]
[1734413575483,2.32953682,4013.2,4012.8,3.0]
[1734413575637,2.5624905,4013.2,4012.8,3.0]
[1734413577811,2.5624905,4013.2,4012.7,0.2492]
[1734413578736,2.5624905,4013.2,4012.8,3.0]
[1734413580315,2.5624905,4013.2,4012.7,0.2492]
[1734413580819,0.23295368,4013.2,4012.8,3.0]
[1734413580958,8.95,4013.6,4012.4,0.24922]
[1734413581367,2.32953682,4012.5,4012.4,0.24922]
[1734413586618,2.49115,4014.3,4012.4,0.24922]
[1734413586619,2.32953682,4013.3,4012.8,3.2492]
[1734413586786,2.32953682,4013.7,4012.7,0.7755]
[1734413586982,2.5624905,4013.7,4013.5,0.24915]
[1734413587179,2.32953682,4013.7,4013.5,0.24915]
[1734413588043,2.32953682,4013.7,4013.6,3.0]
[1734413588222,2.32953682,4014.5,4013.5,0.24915]
[1734413588547,2.32953682,4014.5,4014.2,0.24911]
[1734413588836,2.32953682,4014.5,4014.3,0.2491]
[1734413589150,3.8966298,4016.0,4014.1,3.0]
[1734413589151,8.95,4015.7,4014.7,3.0]
[1734413589349,2.32953682,4015.5,4015.1,0.24905]
[1734413589522,2.32953682,4015.5,4015.2,0.24905]
[1734413589689,2.32953682,4015.5,4015.2,0.24904]
[1734413592322,2.32953682,4015.5,4015.0,3.0]
[1734413592505,2.32953682,4015.5,4014.8,0.7755]
[1734413592849,2.5624905,4015.5,4015.0,0.24906]
[1734413594432,2.5624905,4015.5,4015.0,3.24906]
[1734413594851,2.5624905,4015.5,4015.1,0.24905]
[1734413594852,2.32953682,4015.5,4015.1,0.24905]
[1734413595212,2.32953682,4015.5,4015.0,3.0]
[1734413595413,2.32953682,4015.5,4014.9,0.24907]
[1734413595633,2.32953682,4015.5,4015.0,3.0]
[1734413595933,2.32953682,4015.5,4014.9,0.24907]
[1734413596457,2.32953682,4015.5,4015.0,0.24906]
[1734413596797,2.32953682,4015.5,4015.0,3.24906]
[1734413598017,2.32953682,4015.5,4015.0,0.24906]
[1734413598417,2.32953682,4015.5,4015.0,3.24906]
[1734413599957,2.32953682,4015.5,4014.8,0.7755]
[1734413600160,2.32953682,4015.1,4014.5,0.55]
[1734413600317,2.32953682,4015.1,4015.0,3.0]
[1734413600520,2.32953682,4015.1,4014.6,3.0]
[1734413600747,2.32953682,4014.7,4014.6,3.0]
[1734413601018,2.32953682,4014.7,4014.5,0.24909]
[1734413601276,2.32953682,4015.1,4014.9,0.24906]
[1734413601573,2.32953682,4015.5,4014.9,3.0]
[1734413601776,2.32953682,4015.5,4015.1,0.24905]
[1734413602565,2.32953682,4015.5,4015.2,0.24905]
[1734413602949,2.32953682,4015.5,4015.1,3.0]
[1734413603273,2.32953682,4015.5,4014.8,0.55]
[1734413603488,2.32953682,4015.5,4015.3,0.24904]
[1734413604997,2.32953682,4015.5,4015.4,0.7627]
[1734413605150,2.32953682,4015.9,4015.7,0.24902]
[1734413605353,2.32953682,4016.3,4015.7,0.24902]
[1734413605558,2.32953682,4016.3,4015.9,0.249]
[1734413609170,2.32953682,4016.3,4015.4,0.7627]
[1734413609532,2.32953682,4016.3,4015.4,1.01173]
[1734413609533,2.32953682,4015.5,4015.4,1.01173]
[1734413610037,2.32953682,4015.5,4015.4,0.24903]
[1734413610860,2.32953682,4015.9,4015.6,3.0]
[1734413611060,2.32953682,4015.9,4015.6,3.24902]
[1734413611293,2.32953682,4015.9,4015.6,0.24902]
[1734413611804,2.32953682,4015.9,4015.7,0.24902]
[1734413613593,2.32953682,4016.3,4016.1,0.24899]
[1734413614602,2.32953682,4016.3,4015.8,1.07131]
[1734413614790,2.32953682,4015.9,4015.8,1.07131]
[1734413617005,2.32953682,4015.9,4015.8,0.24901]
[1734413617703,2.32953682,4015.9,4015.8,3.0]
[1734413617924,2.32953682,4015.9,4015.5,3.0]
[1734413618064,2.32953682,4015.9,4015.0,0.24906]
[1734413618065,2.32953682,4015.6,4015.0,0.24906]
[1734413618264,2.32953682,4015.1,4015.0,0.24906]
[1734413618706,2.32953682,4015.5,4015.3,0.24904]
[1734413622420,2.32953682,4015.5,4015.1,3.0]
[1734413622576,2.32953682,4015.5,4015.0,0.24906]
[1734413622907,2.32953682,4015.5,4015.1,3.0]
[1734413623269,2.32953682,4015.5,4015.0,0.24906]
[1734413623873,2.32953682,4015.5,4015.2,0.24905]
[1734413626493,2.32953682,4015.5,4015.0,0.24906]
[1734413626807,2.32953682,4015.5,4015.1,3.0]
[1734413627443,2.32953682,4015.5,4015.0,0.24906]
[1734413628437,2.32953682,4015.5,4015.1,3.0]
[1734413628953,2.32953682,4015.5,4015.0,0.24906]
[1734413629457,2.32953682,4015.5,4015.1,3.0]
[1734413629458,2.5624905,4015.5,4015.1,3.0]
[1734413630052,2.5624905,4015.5,4014.4,0.7837]
[1734413630250,2.32953682,4014.5,4014.0,0.7837]
[1734413630437,2.32953682,4014.5,4014.3,0.2491]
[1734413630749,2.32953682,4014.5,4013.6,0.24914]
[1734413630750,2.32953682,4014.5,4013.8,0.24914]
[1734413630929,2.32953682,4014.5,4014.2,0.24911]
[1734413631110,2.32953682,4014.5,4014.3,0.2491]
[1734413631527,2.32953682,4014.5,4013.8,0.128198]
[1734413631727,2.32953682,4014.5,4014.0,0.24912]
[1734413633052,2.32953682,4014.5,4013.7,0.7837]
[1734413633053,2.32953682,4014.5,4014.1,0.24911]
[1734413634200,2.32953682,4014.5,4013.7,0.7837]
[1734413634432,2.32953682,4014.5,4013.9,0.24913]
[1734413634640,2.32953682,4014.0,4013.3,1.82420931]
[1734413634863,2.32953682,4013.6,4013.5,0.24915]
[1734413636949,2.32953682,4013.6,4013.0,0.7837]
[1734413637508,2.32953682,4013.6,4013.5,0.24915]
[1734413642735,2.32953682,4014.4,4013.6,0.8205]
[1734413642933,2.08981411,4015.4,4014.8,0.24907]
[1734413642934,1.55,4015.0,4014.8,0.24907]
[1734413643113,3.87953682,4015.0,4014.5,0.24909]
[1734413643313,2.32953682,4014.6,4014.3,3.0]
[1734413643630,2.5624905,4014.6,4013.8,0.8205]
[1734413643958,2.5624905,4014.6,4013.7,0.24914]
[1734413643959,2.32953682,4014.0,4013.7,0.24914]
[1734413644812,2.32953682,4014.0,4013.4,1.06966]
[1734413645011,2.32953682,4014.0,4013.8,0.24913]
[1734413646225,2.32953682,4014.0,4013.4,0.8205]
[1734413646524,2.32953682,4014.0,4013.9,3.0]
[1734413646724,2.32953682,4014.0,4013.5,0.24915]
[1734413646958,2.32953682,4013.6,4013.5,0.24915]
[1734413647430,2.32953682,4013.6,4013.2,0.24917]
[1734413647615,2.32953682,4013.6,4013.3,0.24917]
[1734413648069,2.32953682,4013.6,4013.4,0.24916]
[1734413649417,2.5624905,4013.6,4013.1,0.24917]
[1734413649666,2.32953682,4013.2,4013.1,0.24917]
[1734413649822,2.32953682,4013.2,4012.8,0.7568]
[1734413650018,2.32953682,4013.2,4013.0,0.24918]
[1734413651021,2.32953682,4013.2,4013.0,3.24918]
[1734413651221,2.32953682,4013.2,4013.0,0.24918]
[1734413651528,2.32953682,4014.0,4013.8,0.24913]
[1734413651723,2.32953682,4014.0,4013.8,3.24913]
[1734413652663,2.32953682,4014.0,4013.8,0.24913]
[1734413652865,2.32953682,4014.0,4013.8,3.24913]
[1734413653223,2.32953682,4014.0,4013.8,0.24913]
[1734413653832,2.32953682,4014.0,4013.8,3.24913]
[1734413654035,2.32953682,4014.0,4013.6,0.24914]
[1734413654324,2.32953682,4013.7,4013.6,0.24914]
[1734413656393,2.32953682,4013.7,4013.3,0.24916]
[1734413656544,2.32953682,4013.4,4013.3,0.24916]
[1734413656723,2.32953682,4013.4,4012.6,0.2492]
[1734413657061,2.32953682,4013.4,4013.1,0.24918]
[1734413657275,2.32953682,4013.4,4012.8,0.24919]
[1734413657438,2.5624905,4013.4,4012.9,0.24919]
[1734413657625,2.32953682,4013.0,4012.6,0.24921]
[1734413658664,2.32953682,4013.0,4012.3,0.8196]
[1734413658912,2.32953682,4013.0,4012.8,0.2492]
[1734413659989,2.32953682,4013.0,4012.3,0.8196]
[1734413660128,2.32953682,4012.6,4012.3,0.8196]
[1734413661388,2.32953682,4012.6,4012.4,0.24922]
[1734413667580,8.95,4013.3,4012.1,0.8196]
[1734413667739,2.32953682,4012.8,4012.2,0.24923]
[1734413667938,2.32953682,4012.8,4012.4,0.24922]
[1734413668565,2.32953682,4012.8,4012.5,0.24921]
[1734413668770,2.32953682,4012.8,4012.1,0.8196]
[1734413668942,2.32953682,4012.8,4012.7,3.0]
[1734413669152,2.32953682,4012.8,4012.5,0.24921]
[1734413669347,2.32953682,4012.8,4012.7,3.0]
[1734413669551,2.32953682,4012.8,4012.5,0.24921]
[1734413671356,2.32953682,4012.8,4012.7,3.0]
[1734413671869,2.32953682,4012.8,4012.7,0.0222439]
[1734413672181,2.32953682,4012.8,4012.7,3.0]
[1734413672556,2.32953682,4012.8,4012.7,3.02225118]
[1734413672784,2.32953682,4012.8,4012.7,0.02225118]
[1734413672961,2.32953682,4012.8,4012.7,3.02225118]
[1734413673282,2.32953682,4012.8,4012.7,0.02225118]
[1734413673488,2.32953682,4012.8,4012.7,3.0]
[1734413673643,2.32953682,4012.8,4012.7,0.02225118]
[1734413673844,2.32953682,4012.8,4012.6,0.24921]
[1734413674073,2.32953682,4012.8,4012.7,3.0]
[1734413674275,8.95,4013.3,4012.7,0.02225118]
[1734413674492,8.95,4013.3,4012.7,3.0]
[1734413674493,2.32953682,4012.8,4012.7,3.0]
[1734413674641,2.32953682,4012.8,4012.7,0.02225118]
[1734413674841,2.32953682,4012.8,4012.7,3.0]
[1734413675074,2.32953682,4012.8,4012.7,0.0222439]
[1734413675269,2.32953682,4012.8,4012.7,3.0]
[1734413675494,2.32953682,4012.8,4012.7,3.0222439]
[1734413675876,2.32953682,4012.8,4012.7,0.0222439]
[1734413676060,1.07227703,4012.8,4012.6,0.24921]
[1734413676447,2.14455406,4012.8,4012.6,0.24921]
[1734413676963,2.14455406,4012.8,4012.4,0.24922]
[1734413676964,2.35900947,4012.8,4012.4,0.24922]
[1734413677287,1.07227703,4012.5,4012.4,0.24922]
[1734413677901,1.07227703,4012.5,4011.8,0.8196]
[1734413678100,1.07227703,4011.9,4011.7,0.24926]
[1734413678389,1.07227703,4011.8,4011.7,0.24926]
[1734413678885,1.07227703,4011.8,4011.7,1.2775367]
[1734413679094,1.07227703,4012.1,4011.9,0.24925]
[1734413679452,1.07227703,4012.1,4012.0,0.02190078]
[1734413679794,1.07227703,4012.1,4011.9,0.24925]
[1734413680090,2.32358185,4012.5,4012.3,0.24922]
[1734413680464,2.32358185,4012.5,4012.4,0.02182181]
[1734413680987,2.32358185,4012.5,4012.3,0.24922]
[1734413681386,2.32358185,4012.5,4012.4,0.02182181]
[1734413681776,2.32358185,4012.5,4012.3,0.24922]
[1734413682178,2.32358185,4012.5,4012.4,0.02182181]
[1734413682702,2.32358185,4012.5,4012.3,0.24922]
[1734413682901,2.55594004,4012.5,4012.4,0.02182181]
[1734413683102,2.55594004,4012.5,4012.1,0.24924]
[1734413683276,2.32358185,4012.5,4012.2,3.02207372]
[1734413683882,2.32358185,4012.5,4012.2,0.02207372]
[1734413684218,2.32358185,4012.5,4012.1,0.24924]
[1734413684589,2.32358185,4012.5,4012.2,0.02207372]
[1734413684991,2.32358185,4012.5,4012.1,0.24924]
[1734413685981,2.32358185,4012.5,4011.7,0.8196]
[1734413686178,2.32358185,4012.1,4011.8,0.24926]
[1734413686394,2.32358185,4012.1,4011.8,0.27140281]
[1734413686616,0.23235819,4012.0,4011.8,0.02214281]
[1734413686946,0.23235819,4012.0,4011.0,0.8108]
[1734413687106,2.32358185,4011.6,4011.0,0.8108]
[1734413688147,2.32358185,4011.6,4011.4,0.24928]
[1734413688641,2.32358185,4011.6,4011.1,0.2493]
[1734413688870,2.32358185,4011.6,4011.0,0.8108]
[1734413689145,2.32358185,4011.6,4011.5,0.76705462]
[1734413689304,2.55594004,4011.6,4011.5,0.76705462]
[1734413690509,8.95,4012.4,4011.5,0.76705462]
[1734413690770,2.32358185,4011.6,4011.5,0.99298]
[1734413691356,2.32358185,4011.6,4011.5,1.01512655]
[1734413692824,2.32358185,4011.6,4011.5,0.76584655]
[1734413694368,2.32358185,4011.6,4011.5,0.7437]
[1734413694684,2.55594004,4011.6,4011.5,0.7437]
[1734413694882,0.23235819,4011.6,4011.5,0.7437]
[1734413695036,2.32358185,4011.6,4011.5,0.7437]
[1734413695861,2.32358185,4011.6,4011.5,0.76622337]
[1734413696102,2.32358185,4011.6,4011.5,0.7437]
[1734413696433,2.32358185,4011.6,4011.5,0.76638157]
[1734413696655,2.32358185,4011.6,4011.5,0.7437]
[1734413697096,2.32358185,4011.6,4011.5,0.76638157]
[1734413698256,2.32358185,4012.0,4011.8,0.24926]
[1734413698457,2.32358185,4012.0,4011.9,0.8108]
[1734413698962,2.32358185,4012.0,4011.9,3.8108]
[1734413699158,2.32358185,4012.0,4011.9,0.8108]
[1734413699356,2.32358185,4012.0,4011.9,3.02261246]
[1734413699593,2.32358185,4012.0,4011.8,0.24926]
[1734413699763,2.32358185,4012.0,4011.9,0.02261246]
[1734413699968,2.32358185,4012.0,4011.8,0.24926]
[1734413700412,2.32358185,4012.0,4011.9,3.0]
[1734413700793,2.32358185,4012.0,4011.9,3.02261246]
[1734413701809,2.32358185,4012.0,4011.9,0.02261246]
[1734413702174,2.32358185,4012.0,4011.6,0.8108]
[1734413702479,2.32358185,4012.0,4011.7,0.02264701]
[1734413702680,2.32358185,4012.0,4011.6,1.06007]
[1734413703087,2.32358185,4012.0,4011.7,0.02264701]
[1734413703282,2.32358185,4012.0,4011.6,0.24927]
[1734413703586,2.32358185,4012.0,4011.7,0.02264701]
[1734413704472,2.55594004,4012.0,4011.5,0.7437]
[1734413704786,2.32358185,4011.6,4011.5,0.7437]
[1734413712459,2.32358185,4011.6,4011.5,0.30212812]
[1734413713546,8.95,4011.5,4010.4,0.8232]
[1734413713853,2.32358185,4010.6,4010.5,0.02251825]
[1734413714541,2.32358185,4010.6,4010.3,0.24935]
[1734413714753,2.32358185,4010.6,4010.4,0.27188554]
[1734413715550,2.32358185,4011.0,4010.8,0.24932]
[1734413715879,2.32358185,4011.0,4010.9,0.7816]
[1734413716065,8.95,4011.4,4011.1,0.2493]
[1734413716066,11.27358185,4011.4,4011.1,0.2493]
[1734413717074,8.95,4011.4,4011.1,0.2493]
[1734413717257,2.32358185,4011.2,4011.1,0.2493]
[1734413717665,2.32358185,4011.6,4011.3,0.24929]
[1734413717992,8.95,4013.3,4012.1,3.0]
[1734413718156,8.95,4013.1,4012.9,0.24919]
[1734413718344,8.95,4013.1,4012.6,3.24921]
[1734413718345,2.32358185,4013.6,4013.4,0.24916]
[1734413718541,1.04458856,4013.9,4013.4,0.7816]
[1734413718757,1.56709298,4014.1,4013.8,0.24913]
[1734413718758,3.36817041,4014.1,4013.8,0.24913]
[1734413718954,2.32358185,4013.7,4013.2,0.24917]
[1734413719200,2.32358185,4013.7,4013.0,0.7816]
[1734413719385,2.32358185,4013.7,4013.5,0.24915]
[1734413720102,2.55594004,4013.7,4013.3,3.0]
[1734413720302,2.55594004,4013.7,4013.3,0.24916]
[1734413720591,2.55594004,4013.7,4013.4,0.24916]
[1734413720798,2.55594004,4013.7,4013.0,0.7816]
[1734413720946,2.32358185,4013.3,4013.1,0.24918]
[1734413721154,2.32358185,4013.3,4012.0,1.04050931]
[1734413721459,2.32358185,4012.9,4012.7,0.2492]
[1734413722246,2.32358185,4012.9,4012.5,0.7816]
[1734413724165,2.32358185,4012.9,4012.6,0.24921]
[1734413724360,2.32358185,4012.9,4012.3,0.24922]
[1734413726594,2.32358185,4012.9,4012.5,3.0]
[1734413726904,2.55594004,4012.9,4012.3,0.24922]
[1734413727909,2.32358185,4012.5,4012.0,0.24924]
[1734413729664,2.32358185,4012.5,4011.7,1.04256]
[1734413729922,2.32358185,4012.5,4011.8,0.24926]
[1734413730116,2.32358185,4012.5,4011.8,0.2743048]
[1734413730413,2.32358185,4012.5,4011.9,0.24925]
[1734413730652,2.32358185,4012.5,4012.1,0.24924]
[1734413730653,2.55594004,4012.5,4012.1,0.24924]
[1734413730808,2.55594004,4012.5,4012.1,3.24924]
[1734413731009,2.55594004,4012.5,4012.1,0.24924]
[1734413731317,2.32358185,4012.9,4012.5,0.24921]
[1734413732253,2.32358185,4012.9,4012.0,0.55]
[1734413732408,2.49165,4013.4,4012.0,0.79924]
[1734413732409,2.32358185,4012.5,4012.0,0.79924]
[1734413732606,2.32358185,4012.5,4012.1,0.06822087]
[1734413733278,2.32358185,4012.5,4012.1,3.06822087]
[1734413733474,2.32358185,4012.5,4012.1,0.06822087]
[1734413733783,2.32358185,4012.5,4012.3,0.24923]
[1734413734445,2.55594004,4012.5,4012.3,0.24923]
[1734413735229,2.32358185,4012.9,4012.4,0.24922]
[1734413735426,2.32358185,4012.9,4012.4,3.0]
[1734413735675,2.32358185,4012.9,4012.7,0.2492]
[1734413736034,2.32358185,4012.9,4012.8,0.06805722]
[1734413736237,2.32358185,4012.9,4012.7,0.2492]
[1734413736475,2.55594004,4012.9,4012.8,0.06805722]
[1734413736832,2.55594004,4012.9,4012.7,0.2492]
[1734413737038,2.55594004,4012.9,4012.8,0.06805722]
[1734413737486,2.55594004,4012.9,4012.7,0.2492]
[1734413737694,2.55594004,4012.9,4012.8,0.06805722]
[1734413737850,2.32358185,4012.9,4012.8,0.06805722]
[1734413738088,2.32358185,4012.9,4012.2,0.55]
[1734413738308,2.49159,4013.5,4012.8,0.06798776]
[1734413738456,2.49159,4013.5,4012.2,0.24923]
[1734413738789,0.35361786,4013.4,4012.3,0.24923]
[1734413738954,2.32358185,4012.4,4012.3,0.24923]
[1734413739735,2.32358185,4012.4,4012.3,0.54244958]
[1734413739974,2.32358185,4012.4,4012.3,0.61053445]
[1734413741204,2.32358185,4012.4,4012.3,0.36130445]
[1734413742707,2.32358185,4012.4,4012.3,0.06808487]
[1734413742902,2.55594004,4012.4,4012.3,0.06808487]
[1734413743120,2.55594004,4012.4,4011.8,0.79926]
[1734413743260,2.55594004,4012.4,4012.3,0.0680055]
[1734413743460,2.55594004,4012.4,4011.8,1.09247958]
[1734413743686,2.55594004,4012.4,4012.3,0.0680055]
[1734413744213,2.55594004,4012.4,4011.8,1.09247958]
[1734413744502,0.255594,4012.3,4012.1,3.0]
[1734413744872,0.255594,4012.3,4011.8,0.29321958]
[1734413745203,2.32358185,4012.0,4011.8,0.29321958]
[1734413746809,2.32358185,4012.0,4011.7,0.55]
[1734413747514,2.32358185,4012.0,4011.6,0.24927]
[1734413748514,2.32358185,4012.0,4011.4,0.55]
[1734413748656,2.32358185,4012.0,4011.4,0.84321958]
[1734413748856,2.32358185,4012.0,4011.8,0.24926]
[1734413749097,2.32358185,4012.0,4011.9,0.8223]
[1734413750153,2.32358185,4012.0,4011.8,0.24926]
[1734413750500,2.32358185,4012.0,4011.9,0.06835104]
[1734413751118,2.32358185,4012.0,4011.6,1.07157]
[1734413751329,2.55594004,4012.0,4011.6,0.24927]
[1734413751713,2.55594004,4012.0,4011.6,3.24927]
[1734413752102,2.55594004,4012.0,4011.7,0.06860536]
[1734413752551,2.55594004,4012.0,4011.6,0.24927]
[1734413752852,2.55594004,4012.0,4011.6,3.24927]
[1734413753366,2.32358185,4012.0,4011.7,0.31786536]
[1734413753568,8.95,4012.5,4011.4,0.55]
[1734413753864,2.32358185,4012.2,4011.6,3.55]
[1734413754179,2.32358185,4012.2,4011.9,0.24925]
[1734413754671,2.32358185,4012.2,4012.0,0.06855004]
[1734413755469,2.55594004,4012.2,4011.4,0.55]
[1734413755674,2.32358185,4012.2,4012.1,0.0685316]
[1734413755879,2.32358185,4012.2,4011.4,0.55]
[1734413756292,2.32358185,4011.8,4011.6,0.55]
[1734413756786,2.32358185,4011.8,4011.7,0.06860536]
[1734413759297,1.04458856,4013.0,4012.2,0.24923]
[1734413759298,2.32358185,4012.6,4012.2,0.24923]
[1734413759437,0.23235819,4012.5,4012.2,0.24923]
[1734413759638,0.23235819,4012.5,4012.3,0.06853427]
[1734413759884,0.23235819,4012.5,4012.2,0.24923]
[1734413760050,0.23235819,4012.5,4012.4,0.06850595]
[1734413760388,0.23235819,4012.5,4012.3,0.06852439]
[1734413760599,0.23235819,4012.5,4012.4,0.06850595]
[1734413760954,0.23235819,4012.5,4012.2,0.24923]
[1734413761151,8.95,4013.3,4012.6,0.24921]
[1734413761351,2.32358185,4012.9,4012.6,0.24921]
[1734413761744,2.32358185,4012.9,4012.7,0.06845065]
[1734413762376,2.32358185,4012.9,4012.4,0.55]
[1734413762597,2.32358185,4012.9,4012.4,0.79922]
[1734413764371,2.32358185,4012.9,4012.5,0.24921]
[1734413764552,2.32358185,4012.9,4012.6,0.06832085]
[1734413764984,2.32358185,4012.9,4012.5,0.24921]
[1734413765295,2.32358185,4012.9,4012.6,0.06832085]
[1734413765497,2.32358185,4012.9,4012.6,0.31753085]
[1734413765697,2.32358185,4012.9,4012.6,0.24921]
[1734413766087,2.32358185,4012.9,4012.7,0.06830242]
[1734413766266,2.32358185,4012.9,4012.7,0.31750242]
[1734413766457,2.32358185,4012.9,4012.7,0.2492]
[1734413766659,2.32358185,4012.9,4012.8,0.06828399]
[1734413766916,2.32358185,4013.3,4013.1,0.24918]
[1734413767405,2.32358185,4013.3,4013.2,0.06792393]
[1734413768000,2.32358185,4013.3,4012.5,0.7734]
[1734413768001,2.55594004,4013.3,4012.8,0.24919]
[1734413768211,2.32358185,4012.9,4012.8,0.24919]
[1734413769322,2.32358185,4012.9,4012.8,0.31702956]
[1734413769680,2.32358185,4012.9,4012.8,0.06783956]
[1734413769979,2.32358185,4012.9,4012.7,0.55]
[1734413770179,2.32358185,4012.9,4012.8,0.06783956]
[1734413770401,2.32358185,4012.9,4012.7,0.7992]
[1734413770584,2.32358185,4012.9,4012.8,0.06783956]
[1734413770791,2.32358185,4012.9,4012.7,0.7992]
[1734413770986,2.32358185,4012.9,4012.8,0.06783956]
[1734413771219,2.32358185,4012.9,4012.7,0.7992]
[1734413771421,2.32358185,4012.9,4012.8,0.06699175]
[1734413771575,2.32358185,4012.9,4012.7,0.7992]
[1734413771776,2.32358185,4012.9,4012.8,0.06699175]
[1734413772053,2.32358185,4012.9,4012.7,0.7992]
[1734413772318,2.32358185,4012.9,4012.8,0.06699175]
[1734413772726,2.32358185,4012.9,4012.7,0.7992]
[1734413772910,2.32358185,4012.9,4012.8,0.06699175]
[1734413773312,2.55594004,4012.9,4012.4,0.55]
[1734413773476,2.32358185,4012.9,4012.4,0.55]
[1734413773677,2.32358185,4012.9,4012.6,3.0]
[1734413774121,1.07239339,4012.7,4012.4,0.55]
[1734413775618,1.07239339,4012.7,4012.2,0.55]
[1734413775838,9.99458856,4013.4,4012.4,0.24922]
[1734413776042,2.3773666,4013.3,4012.4,0.24922]
[1734413776197,1.15616815,4013.3,4012.4,0.24922]
[1734413776593,1.15616815,4013.3,4012.2,0.55]
[1734413776793,1.15616815,4013.3,4012.1,0.7734]
[1734413776794,1.07239339,4012.3,4012.1,0.7734]
[1734413777063,1.07239339,4012.3,4012.1,0.24924]
[1734413777344,1.07239339,4012.5,4012.4,0.24922]
[1734413777656,8.95,4013.2,4012.4,2.16472567]
[1734413777812,1.07239339,4012.8,4012.4,1.30663958]
[1734413778144,1.07239339,4012.8,4012.7,0.2492]
[1734413778325,1.07239339,4012.8,4012.7,0.7992]
[1734413778894,2.08981411,4013.9,4013.1,1.3142]
[1734413778895,9.99458856,4013.9,4013.1,1.3142]
[1734413779093,9.99458856,4013.9,4013.2,0.24917]
[1734413779338,9.99458856,4013.9,4013.3,0.79917]
[1734413779645,8.95,4013.9,4013.4,0.55]
[1734413779941,0.73281204,4013.8,4013.5,0.06665523]
[1734413780145,1.07239339,4013.6,4013.5,0.06665523]
[1734413780443,1.07239339,4013.6,4013.4,0.55]
[1734413780744,1.07239339,4013.6,4013.5,0.06665523]
[1734413781338,1.07239339,4013.6,4013.4,0.55]
[1734413781501,1.07239339,4013.6,4013.4,0.24916]
[1734413782145,1.07239339,4014.0,4013.5,0.06665523]
[1734413782445,1.07239339,4013.6,4013.4,0.24916]
[1734413782745,1.07239339,4013.6,4013.5,0.06665523]
[1734413783131,8.95,4014.3,4013.6,0.24915]
[1734413783448,1.07239339,4014.0,4013.7,0.55]
[1734413784246,1.07239339,4014.0,4013.8,0.06659996]
[1734413784435,1.07239339,4014.0,4013.7,0.55]
[1734413784436,2.14478678,4014.0,4013.7,0.55]
[1734413784635,2.14478678,4014.0,4013.5,0.55]
[1734413784831,1.07239339,4013.6,4013.5,0.55]
[1734413785035,1.07239339,4013.6,4013.5,0.61665523]
[1734413790177,1.07239339,4013.6,4013.5,0.06665523]
[1734413790743,1.07239339,4013.6,4013.1,0.7642]
[1734413791078,1.07239339,4014.0,4012.8,1.03249]
[1734413791288,1.07239339,4012.9,4012.8,1.03249]
[1734413792083,8.95,4014.3,4013.1,0.24918]
[1734413792084,2.32268445,4013.3,4013.1,0.24918]
[1734413794892,2.32268445,4013.3,4012.9,0.55]
[1734413795391,2.32268445,4013.3,4012.9,0.79919]
[1734413796841,2.32268445,4013.3,4012.9,0.55]
[1734413797300,2.32268445,4013.3,4012.9,0.79919]
[1734413798078,2.32268445,4013.3,4012.7,0.55]
[1734413798287,2.32268445,4012.9,4012.7,0.7992]
[1734413798688,2.32268445,4012.9,4012.5,0.55]
[1734413798992,2.32268445,4012.6,4012.5,0.55]
[1734413799362,2.32268445,4012.8,4011.9,0.7833]
[1734413799563,2.32268445,4012.0,4011.9,0.24925]
[1734413799764,2.32268445,4012.0,4011.4,1.04050931]
[1734413799968,2.32268445,4011.6,4011.4,0.24928]
[1734413802456,2.32268445,4011.6,4011.5,0.55]
[1734413803357,2.32268445,4011.6,4011.5,3.55]
[1734413803868,2.32268445,4011.6,4011.5,0.55]
[1734413808157,2.5549529,4011.6,4010.5,3.0]
[1734413808423,2.32268445,4010.8,4010.6,0.8228]
[1734413809208,2.32268445,4010.8,4010.7,3.0]
[1734413809364,2.32268445,4010.8,4010.3,0.24935]
[1734413810022,2.32268445,4010.8,4010.5,0.24934]
[1734413811062,2.32268445,4010.8,4010.3,0.55]
[1734413811378,2.32268445,4010.8,4010.5,0.55]
[1734413811788,2.32268445,4010.8,4010.6,0.06851065]
[1734413812095,2.32268445,4010.8,4010.7,3.0]
[1734413812500,2.32268445,4010.8,4010.7,3.06849219]
[1734413813335,2.32268445,4010.8,4010.7,0.06849219]
[1734413813841,2.32268445,4010.8,4010.5,0.55]
[1734413814426,2.32268445,4010.8,4010.6,3.0]
[1734413814632,2.32268445,4010.8,4010.7,0.06849219]
[1734413814930,2.32268445,4010.8,4010.6,3.0]
[1734413815284,2.5549529,4010.8,4010.7,0.06849219]
[1734413815590,11.5049529,4010.8,4009.9,0.24938]